fUST/lending_fUST_20251201
["ID","MTS","AMOUNT","RATE_DAILY","PERIOD"]
[395220325,1764550764276,-503.0,0.000136,6]
[395220442,1764551439098,-1495.0,0.00011345,2]
[395220444,1764551439108,-170.42418993,0.00011403,2]
[395220446,1764551439117,-1251.0,0.0001146,2]
[395220448,1764551439127,-244.0,0.0001146,2]
[395220449,1764551439136,-1000.0,0.000128,2]
[395220452,1764551439148,-353.67603643,0.00013002,2]
[395220454,1764551439158,-3.0681465,0.000132,2]
[395220456,1764551439170,-393.7139467,0.000132,2]
[395220458,1764551439179,-1884.0660533,0.00013269,2]
[395220460,1764551439191,-7449.7992798,0.00013269,2]
[395220585,1764551440410,-26236.3982531,0.00013269,2]
[395220588,1764551440432,-237.4300073,0.00013269,2]
[395220945,1764551444119,-3040.7819391,0.00013269,2]
[395220947,1764551444131,-279.54472512,0.00013269,2]
[395221012,1764551444775,-316.965,0.00013137,2]
[395221014,1764551444787,-435.015,0.00013137,2]
[395221165,1764551446194,-1749.71164473,0.00013137,2]
[395221167,1764551446203,-530.50931416,0.00013269,2]
[395221169,1764551446215,-4452.95865299,0.00013269,2]
[395221173,1764551446245,-366.39040813,0.00013269,2]
[395222010,1764551478443,-4477.888633,0.00013137,2]
[395222011,1764551478456,-1044.232734,0.00013137,2]
[395222012,1764551478465,-300.0,0.00013267,2]
[395222013,1764551478474,-162.08220998,0.00013268,2]
[395222014,1764551478484,-506.29664615,0.00013268,2]
[395222015,1764551478493,-500.0,0.00013268,2]
[395222016,1764551478503,-158.01311704,0.00013268,2]
[395222017,1764551478512,-335.60613305,0.00013268,2]
[395222018,1764551478523,-314.13096194,0.00013268,2]
[395222019,1764551478531,-2201.75956484,0.00013269,2]
[395222020,1764551478813,-3320.36180216,0.00013269,2]
[395222021,1764551478840,-500.0,0.00013273,2]
[395222022,1764551478868,-454.96116382,0.00013273,2]
[395222023,1764551478894,-500.0,0.00013273,2]
[395222024,1764551478912,-500.0,0.00013273,2]
[395222025,1764551478921,-500.0,0.00013273,2]
[395222026,1764551478930,-500.0,0.00013273,2]
[395222027,1764551478939,-500.0,0.00013273,2]
[395222028,1764551478948,-1320.36180216,0.0001339,2]
[395222029,1764551478959,-500.0,0.0001339,2]
[395222030,1764551478969,-454.96116382,0.0001339,2]
[395222031,1764551478979,-500.0,0.0001339,2]
[395222032,1764551478990,-449.36406804,0.0001339,2]
[395222033,1764551479074,-4633.82040842,0.0001339,2]
[395222034,1764551479119,-732.36918316,0.0001339,2]
[395222035,1764551479128,-201.10054412,0.00013403,2]
[395222036,1764551479136,-656.03840076,0.000135,2]
[395222037,1764551479146,-231.28369723,0.00013577,2]
[395222038,1764551479356,-3143.07964354,0.00013598,2]
[395222039,1764551479366,-402.31812277,0.000136,3]
[395222040,1764551479487,-597.68187723,0.000136,3]
[395222041,1764551479515,-1000.0,0.000136,4]
[395222042,1764551479543,-1000.0,0.000136,5]
[395222043,1764551479570,-497.0,0.000136,6]
[395222044,1764551479597,-151.0,0.000136,2]
[395222045,1764551479624,-300.0,0.00013673,2]
[395222046,1764551479650,-500.0,0.00013697,2]
[395222047,1764551479681,-500.0,0.00013698,2]
[395222048,1764551479708,-357.12624554,0.00013698,2]
[395222049,1764551479744,-194.39375446,0.00013698,2]
[395222050,1764551479770,-500.0,0.00013698,2]
[395222051,1764551479797,-626.81274218,0.00013698,2]
[395222052,1764551479823,-500.0,0.00013698,2]
[395222053,1764551479850,-500.0,0.00013698,2]
[395222054,1764551479878,-500.0,0.00013698,2]
[395222055,1764551479906,-500.0,0.00013698,2]
[395222056,1764551479934,-500.0,0.00013698,2]
[395222057,1764551479962,-500.0,0.00013698,2]
[395222058,1764551479990,-500.0,0.00013698,2]
[395222059,1764551480010,-492.51678468,0.00013698,2]
[395222060,1764551480020,-105.16509255,0.00013698,2]
[395222061,1764551480039,-1000.0,0.00013698,2]
[395222062,1764551480050,-23.23490745,0.00013698,2]
[395222063,1764551480060,-500.0,0.00013698,2]
[395222064,1764551480070,-476.76509255,0.00013698,2]
[395222065,1764551480082,-23.23490745,0.00013698,2]
[395222066,1764551480091,-473.76509255,0.00013698,2]
[395222067,1764551480128,-284.75490745,0.00013698,2]
[395222068,1764551480156,-599.42488089,0.00013698,2]
[395222069,1764551480185,-636.54,0.00013698,2]
[395222070,1764551480213,-500.0,0.00013698,2]
[395222071,1764551480240,-1091.59,0.00013698,2]
[395222072,1764551480267,-500.0,0.00013698,2]
[395222073,1764551480294,-849.19,0.00013698,2]
[395222074,1764551480321,-434.31397767,0.00013698,2]
[395222075,1764551480334,-151.0,0.00013698,2]
[395222076,1764551480346,-57.38246798,0.00013698,2]
[395222077,1764551480355,-242.61753202,0.00013698,2]
[395222078,1764551480367,-321.16246798,0.00013698,2]
[395222079,1764551480376,-178.83753202,0.00013698,2]
[395222080,1764551480388,-385.21246798,0.00013698,2]
[395222081,1764551480398,-114.78753202,0.00013698,2]
[395222082,1764551480409,-385.21246798,0.00013698,2]
[395222083,1764551480419,-166.30753202,0.00013698,2]
[395222084,1764551480440,-194.39375446,0.00013698,2]
[395222085,1764551480452,-139.29871352,0.00013698,2]
[395222086,1764551480463,-360.70128648,0.00013698,2]
[395222087,1764551480498,-139.29871352,0.00013698,2]
[395222088,1764551480534,-215.28462053,0.00013698,2]
[395222089,1764551480563,-500.0,0.00013698,2]
[395222090,1764551480596,-500.0,0.00013698,2]
[395222091,1764551480627,-500.0,0.00013698,2]
[395222092,1764551480659,-500.0,0.00013698,2]
[395222093,1764551480699,-500.0,0.00013698,2]
[395222094,1764551480732,-515.16,0.00013698,2]
[395222095,1764551480764,-500.0,0.00013698,2]
[395222096,1764551480793,-500.0,0.00013698,2]
[395222097,1764551480824,-500.0,0.00013698,2]
[395222098,1764551480845,-500.0,0.00013698,2]
[395222099,1764551480855,-126.81274218,0.00013698,2]
[395222100,1764551480874,-471.35429828,0.00013698,2]
[395222101,1764551480884,-28.64570172,0.00013698,2]
[395222102,1764551480895,-471.35429828,0.00013698,2]
[395222103,1764551480905,-28.64570172,0.00013698,2]
[395222104,1764551480917,-471.35429828,0.00013698,2]
[395222105,1764551480930,-28.64570172,0.00013698,2]
[395222106,1764551480942,-471.35429828,0.00013698,2]
[395222107,1764551480952,-28.64570172,0.00013698,2]
[395222108,1764551480964,-500.0,0.00013698,2]
[395222109,1764551480976,-134.62429828,0.00013698,2]
[395222110,1764551480986,-365.37570172,0.00013698,2]
[395222111,1764551481004,-196.50429828,0.00013698,2]
[395222112,1764551481014,-303.49570172,0.00013698,2]
[395222113,1764551481047,-196.50429828,0.00013698,2]
[395222114,1764551481074,-500.0,0.00013698,2]
[395222115,1764551481103,-500.0,0.00013698,2]
[395222116,1764551481131,-500.0,0.00013698,2]
[395222117,1764551481159,-587.09,0.00013698,2]
[395222118,1764551481190,-500.0,0.00013698,2]
[395222119,1764551481217,-500.0,0.00013698,2]
[395222120,1764551481244,-500.0,0.00013698,2]
[395222121,1764551481270,-240.58950044,0.00013698,2]
[395222122,1764551481296,-500.0,0.00013698,2]
[395222123,1764551481323,-259.20240256,0.00013698,2]
[395222124,1764551481335,-357.59700672,0.00013698,2]
[395222125,1764551481346,-75.64059072,0.00013698,2]
[395222126,1764551481355,-209.11431673,0.00013698,2]
[395222127,1764551481366,-290.88568327,0.00013698,2]
[395222128,1764551481375,-308.53919762,0.00013698,2]
[395222129,1764551481393,-291.58080238,0.00013698,2]
[395222130,1764551481402,-344.95919762,0.00013698,2]
[395222131,1764551481436,-155.04080238,0.00013698,2]
[395222132,1764551481464,-500.0,0.00013698,2]
[395222133,1764551481494,-500.0,0.00013698,2]
[395222134,1764551481521,-500.0,0.00013698,2]
[395222135,1764551481547,-563.24,0.00013698,2]
[395222136,1764551481573,-500.0,0.00013698,2]
[395222137,1764551481599,-500.0,0.00013698,2]
[395222138,1764551481626,-151.0,0.00013698,2]
[395222139,1764551481652,-151.0,0.00013698,2]
[395222140,1764551481683,-184.626676,0.00013698,2]
[395222141,1764551481710,-500.0,0.00013698,2]
[395222142,1764551481738,-649.88822175,0.00013698,2]
[395222143,1764551481759,-500.0,0.00013698,2]
[395222144,1764551481775,-394.03,0.00013698,2]
[395222145,1764551481785,-697.56,0.00013698,2]
[395222146,1764551481795,-500.0,0.00013698,2]
[395222147,1764551481806,-466.8,0.00013698,2]
[395222148,1764551481815,-382.39,0.00013698,2]
[395222149,1764551481827,-117.61,0.00013698,2]
[395222150,1764551481835,-525.08644565,0.00013698,2]
[395222151,1764551481865,-320.95355435,0.00013698,2]
[395222152,1764551481892,-588.37,0.00013698,2]
[395222153,1764551481919,-500.0,0.00013698,2]
[395222154,1764551481948,-500.0,0.00013698,2]
[395222155,1764551481976,-162.22497057,0.00013698,2]
[395222156,1764551482003,-500.0,0.00013698,2]
[395222157,1764551482032,-500.0,0.00013698,2]
[395222158,1764551482061,-540.52,0.00013698,2]
[395222159,1764551482087,-525.54,0.00013698,2]
[395222160,1764551482274,-500.0,0.00013698,2]
[395222161,1764551482304,-139.29871352,0.00013698,2]
[395222162,1764551482315,-215.28462053,0.00013698,2]
[395222163,1764551482326,-470.14666595,0.00013698,2]
[395222164,1764551482336,-29.85333405,0.00013698,2]
[395222165,1764551482346,-500.0,0.00013698,2]
[395222166,1764551482358,-271.52666595,0.00013698,2]
[395222167,1764551482368,-228.47333405,0.00013698,2]
[395222168,1764551482392,-271.52666595,0.00013698,2]
[395222169,1764551482401,-228.47333405,0.00013698,2]
[395222170,1764551482413,-271.52666595,0.00013698,2]
[395222171,1764551482422,-228.47333405,0.00013698,2]
[395222172,1764551482435,-515.16,0.00013698,2]
[395222173,1764551482451,-458.79666595,0.00013698,2]
[395222174,1764551482460,-41.20333405,0.00013698,2]
[395222175,1764551482471,-490.45666595,0.00013698,2]
[395222176,1764551482480,-9.54333405,0.00013698,2]
[395222177,1764551482492,-490.45666595,0.00013698,2]
[395222178,1764551482501,-9.54333405,0.00013698,2]
[395222179,1764551482511,-260.5233319,0.00013698,2]
[395222180,1764551482533,-196.50429828,0.0001357,3]
[395222181,1764551482545,-26.54277853,0.0001357,3]
[395222182,1764551482554,-229.93333405,0.00013698,2]
[395222183,1764551482563,-243.52388742,0.00013698,2]
[395222184,1764551482581,-256.47611258,0.00013698,2]
[395222185,1764551482590,-243.52388742,0.00013698,2]
[395222186,1764551482601,-500.0,0.00013698,2]
[395222187,1764551482612,-31.19611258,0.00013698,2]
[395222188,1764551482621,-500.0,0.00013698,2]
[395222189,1764551482631,-55.89388742,0.00013698,2]
[395222190,1764551482642,-444.10611258,0.00013698,2]
[395222191,1764551482651,-55.89388742,0.00013698,2]
[395222192,1764551482663,-444.10611258,0.00013698,2]
[395222193,1764551482676,-55.89388742,0.00013698,2]
[395222194,1764551482688,-444.10611258,0.00013698,2]
[395222195,1764551482697,-55.89388742,0.00013698,2]
[395222196,1764551482710,-240.58950044,0.00013698,2]
[395222197,1764551482721,-203.51661214,0.00013698,2]
[395222198,1764551482732,-296.48338786,0.00013698,2]
[395222199,1764551482753,-203.51661214,0.00013698,2]
[395222200,1764551482764,-488.92338786,0.00013698,2]
[395222201,1764551482777,-155.04080238,0.00013698,2]
[395222202,1764551482796,-500.0,0.00013698,2]
[395222203,1764551482809,-278.43580976,0.00013698,2]
[395222204,1764551482819,-221.56419024,0.00013698,2]
[395222205,1764551482832,-383.07580976,0.00013698,2]
[395222206,1764551482842,-116.92419024,0.00013698,2]
[395222207,1764551482859,-563.24,0.00013698,2]
[395222208,1764551482870,-500.0,0.00013698,2]
[395222209,1764551482882,-500.0,0.00013698,2]
[395222210,1764551482893,-151.0,0.00013698,2]
[395222211,1764551482904,-151.0,0.00013698,2]
[395222212,1764551482915,-184.626676,0.00013698,2]
[395222213,1764551482926,-412.42913376,0.00013698,2]
[395222214,1764551482936,-87.57086624,0.00013698,2]
[395222215,1764551482948,-412.42913376,0.00013698,2]
[395222216,1764551482957,-237.45908799,0.00013698,2]
[395222217,1764551482975,-262.54091201,0.00013698,2]
[395222218,1764551482996,-27.87768773,0.00013698,2]
[395222219,1764551483012,-320.95355435,0.00013698,2]
[395222220,1764551483023,-434.00875792,0.00013698,2]
[395222221,1764551483032,-154.36124208,0.00013698,2]
[395222222,1764551483045,-453.48280763,0.00013698,2]
[395222223,1764551483055,-46.51719237,0.00013698,2]
[395222224,1764551483066,-455.23280763,0.00013698,2]
[395222225,1764551483077,-44.76719237,0.00013698,2]
[395222226,1764551483093,-162.22497057,0.00013698,2]
[395222227,1764551483105,-391.52783706,0.00013698,2]
[395222228,1764551483115,-108.47216294,0.00013698,2]
[395222229,1764551483133,-500.0,0.00013698,2]
[395222230,1764551483145,-540.52,0.00013698,2]
[395222231,1764551483162,-7.78783706,0.00013698,2]
[395222232,1764551483172,-517.75216294,0.00013698,2]
[395222233,1764551483185,-125.07783706,0.00013698,2]
[395222234,1764551483195,-374.92216294,0.00013698,2]
[395222235,1764551483212,-286.35783706,0.00013698,2]
[395222236,1764551483222,-438.4351131,0.00013698,2]
[395222237,1764551520396,-365.20732633,0.00013273,2]
[395222238,1764551520425,-500.0,0.00013273,2]
[395222239,1764551520453,-500.0,0.00013273,2]
[395222240,1764551520480,-613.60809671,0.00013273,2]
[395222241,1764551520510,-500.0,0.00013273,2]
[395222242,1764551520541,-1512.29284318,0.00013561,2]
[395222243,1764551520572,-61.5648869,0.00013698,2]
[395222244,1764551520600,-599.40369376,0.00013698,2]
[395222245,1764551520613,-365.20732633,0.00013698,2]
[395222246,1764551520624,-330.64897991,0.00013698,2]
[395222247,1764551520634,-169.35102009,0.00013698,2]
[395222248,1764551520645,-330.64897991,0.00013698,2]
[395222249,1764551520657,-169.35102009,0.00013698,2]
[395222250,1764551520678,-330.64897991,0.00013698,2]
[395222251,1764551520687,-282.9591168,0.00013698,2]
[395222252,1764551520698,-217.0408832,0.00013698,2]
[395222253,1764551520708,-282.9591168,0.00013698,2]
[395222254,1764551520730,-217.0408832,0.00013698,2]
[395222255,1764551520739,-500.0,0.00013698,2]
[395222256,1764551520748,-166.53305041,0.00013698,2]
[395222257,1764551520759,-500.0,0.00013698,2]
[395222258,1764551520769,-128.71890957,0.00013698,2]
[395222259,1764551520785,-61.5648869,0.00013698,2]
[395222260,1764551520803,-309.71620353,0.00013698,2]
[395222261,1764551520812,-500.0,0.00013698,2]
[395222262,1764551520822,-485.54379647,0.00013698,2]
[395222263,1764551520858,-14.45620353,0.00013698,2]
[395222264,1764551520887,-676.81,0.00013698,2]
[395222265,1764551520914,-526.67526706,0.00013698,2]
[395222266,1764551520942,-500.0,0.00013698,2]
[395222267,1764551520969,-500.0,0.00013698,2]
[395222268,1764551521004,-500.0,0.00013698,2]
[395222269,1764551521032,-500.0,0.00013698,2]
[395222270,1764551521060,-500.0,0.00013698,2]
[395222271,1764551521090,-500.0,0.00013698,2]
[395222272,1764551521119,-199.34705882,0.00013698,2]
[395222273,1764551521143,-14.45620353,0.00013698,2]
[395222274,1764551521154,-676.81,0.00013698,2]
[395222275,1764551521165,-474.16673765,0.00013698,2]
[395222276,1764551521174,-52.50852941,0.00013698,2]
[395222277,1764551521204,-447.49147059,0.00013698,2]
[395222278,1764551521231,-500.0,0.00013698,2]
[395222279,1764551521260,-802.05,0.00013698,2]
[395222280,1764551521287,-694.88,0.00013698,2]
[395222281,1764551521315,-500.0,0.00013698,2]
[395222282,1764551521343,-500.0,0.00013698,2]
[395222283,1764551521370,-1551.23,0.00013698,2]
[395222284,1764551521389,-500.0,0.00013698,2]
[395222285,1764551521400,-115.35,0.00013698,2]
[395222286,1764551521409,-384.65,0.00013698,2]
[395222287,1764551521420,-115.35,0.00013698,2]
[395222288,1764551521429,-384.65,0.00013698,2]
[395222289,1764551521440,-115.35,0.00013698,2]
[395222290,1764551521449,-384.65,0.00013698,2]
[395222291,1764551521473,-289.22,0.00013698,2]
[395222292,1764551521484,-184.72676366,0.00013698,2]
[395222293,1764551521493,-26.05323634,0.00013698,2]
[395222294,1764551521562,-473.94676366,0.00013698,2]
[395222295,1764551521571,-26.05323634,0.00013698,2]
[395222296,1764551521627,-580.32241893,0.00013698,2]
[395222297,1764551521636,-500.0,0.00013698,2]
[395222298,1764551521645,-284.45758107,0.00013698,2]
[395222299,1764551521683,-2220.25241893,0.00013698,2]
[395222300,1764551521711,-967.59,0.00013698,2]
[395222301,1764551521742,-500.0,0.00013698,2]
[395222302,1764551521775,-688.49,0.00013698,2]
[395222303,1764551521991,-500.0,0.00013698,2]
[395222304,1764551522013,-447.49147059,0.00013698,2]
[395222305,1764551522024,-57.28852941,0.00013698,2]
[395222306,1764551522033,-442.71147059,0.00013698,2]
[395222307,1764551522045,-57.28852941,0.00013698,2]
[395222308,1764551522054,-500.0,0.00013698,2]
[395222309,1764551522064,-244.76147059,0.00013698,2]
[395222310,1764551522076,-255.23852941,0.00013698,2]
[395222311,1764551522085,-439.64147059,0.00013698,2]
[395222312,1764551522105,-60.35852941,0.00013698,2]
[395222313,1764551522114,-439.64147059,0.00013698,2]
[395222314,1764551522130,-60.35852941,0.00013698,2]
[395222315,1764551522139,-439.64147059,0.00013698,2]
[395222316,1764551522150,-60.35852941,0.00013698,2]
[395222317,1764551522160,-500.0,0.00013698,2]
[395222318,1764551522169,-500.0,0.00013698,2]
[395222319,1764551522178,-490.87147059,0.00013698,2]
[395222320,1764551522198,-8.70705882,0.00013698,2]
[395222321,1764551522228,-176.39147059,0.00013698,2]
[395222322,1764551522254,-500.0,0.00013698,2]
[395222323,1764551522282,-528.87,0.00013698,2]
[395222324,1764551522311,-500.0,0.00013698,2]
[395222325,1764551522339,-500.0,0.00013698,2]
[395222326,1764551522370,-500.0,0.00013698,2]
[395222327,1764551522396,-500.0,0.00013698,2]
[395222328,1764551522424,-633.31,0.00013698,2]
[395222329,1764551522453,-500.0,0.00013698,2]
[395222330,1764551522480,-500.0,0.00013698,2]
[395222331,1764551522534,-828.21,0.00013698,2]
[395222332,1764551522566,-500.0,0.00013698,2]
[395222333,1764551522595,-575.4,0.00013698,2]
[395222334,1764551522623,-500.0,0.00013698,2]
[395222335,1764551522651,-500.0,0.00013698,2]
[395222336,1764551522681,-814.52,0.00013698,2]
[395222337,1764551522709,-500.0,0.00013698,2]
[395222338,1764551522739,-248.17,0.00013698,2]
[395222339,1764551522764,-1067.41,0.00013698,2]
[395222340,1764551522774,-500.0,0.00013698,2]
[395222341,1764551522783,-500.0,0.00013698,2]
[395222342,1764551522792,-152.84241893,0.00013698,2]
[395222343,1764551522803,-967.59,0.00013698,2]
[395222344,1764551522814,-500.0,0.00013698,2]
[395222345,1764551522845,-164.30758107,0.00013698,2]
[395222346,1764551522872,-3149.7,0.00013698,2]
[395222347,1764551522900,-428.02418463,0.00013698,2]
[395222348,1764551522926,-500.0,0.00013698,2]
[395222349,1764551522953,-500.0,0.00013698,2]
[395222350,1764551522980,-15.9464686,0.00013698,2]
[395222351,1764551522992,-484.0535314,0.00013698,2]
[395222352,1764551523002,-204.4364686,0.00013698,2]
[395222353,1764551523043,-1409.2135314,0.00013698,2]
[395222354,1764551523071,-500.0,0.00013698,2]
[395222355,1764551523099,-889.86,0.00013698,2]
[395222356,1764551523128,-1629.21,0.00013698,2]
[395222357,1764551523156,-500.0,0.00013698,2]
[395222358,1764551523199,-500.0,0.00013698,2]
[395222359,1764551523210,-247.34516214,0.00013698,2]
[395222360,1764551523236,-176.39147059,0.00013698,2]
[395222361,1764551523247,-76.26336727,0.00013698,2]
[395222362,1764551523256,-423.73663273,0.00013698,2]
[395222363,1764551523272,-76.26336727,0.00013698,2]
[395222364,1764551523281,-452.60663273,0.00013698,2]
[395222365,1764551523292,-500.0,0.00013698,2]
[395222366,1764551523302,-500.0,0.00013698,2]
[395222367,1764551523314,-500.0,0.00013698,2]
[395222368,1764551523324,-324.15336727,0.00013698,2]
[395222369,1764551523334,-175.84663273,0.00013698,2]
[395222370,1764551523344,-633.31,0.00013698,2]
[395222371,1764551523362,-500.0,0.00013698,2]
[395222372,1764551523373,-5.36336727,0.00013698,2]
[395222373,1764551523383,-494.63663273,0.00013698,2]
[395222374,1764551523398,-5.36336727,0.00013698,2]
[395222375,1764551523407,-317.50369155,0.00013698,2]
[395222376,1764551523419,-182.49630845,0.00013698,2]
[395222377,1764551523429,-645.71369155,0.00013698,2]
[395222378,1764551523440,-500.0,0.00013698,2]
[395222379,1764551523453,-575.4,0.00013698,2]
[395222380,1764551523465,-421.98630845,0.00013698,2]
[395222381,1764551523474,-78.01369155,0.00013698,2]
[395222382,1764551523487,-421.98630845,0.00013698,2]
[395222383,1764551523497,-78.01369155,0.00013698,2]
[395222384,1764551523508,-814.52,0.00013698,2]
[395222385,1764551523525,-500.0,0.00013698,2]
[395222386,1764551523539,-1037.68630845,0.00013698,2]
[395222387,1764551523548,-277.89369155,0.00013698,2]
[395222388,1764551523564,-164.30758107,0.00013698,2]
[395222389,1764551523575,-57.79872738,0.00013698,2]
[395222390,1764551523585,-500.0,0.00013698,2]
[395222391,1764551523594,-500.0,0.00013698,2]
[395222392,1764551523603,-552.76,0.00013698,2]
[395222393,1764551523612,-892.67,0.00013698,2]
[395222394,1764551523621,-500.0,0.00013698,2]
[395222395,1764551523631,-146.47127262,0.00013698,2]
[395222396,1764551523642,-353.52872738,0.00013698,2]
[395222397,1764551523652,-74.49545725,0.00013698,2]
[395222398,1764551523663,-500.0,0.00013698,2]
[395222399,1764551523676,-98.20454275,0.00013698,2]
[395222400,1764551523688,-401.79545725,0.00013698,2]
[395222401,1764551523700,-98.20454275,0.00013698,2]
[395222402,1764551523710,-401.79545725,0.00013698,2]
[395222403,1764551523728,-98.20454275,0.00013698,2]
[395222404,1764551523737,-500.0,0.00013698,2]
[395222405,1764551523748,-500.0,0.00013698,2]
[395222406,1764551523758,-311.00898865,0.00013698,2]
[395222407,1764551523770,-500.0,0.00013698,2]
[395222408,1764551523781,-871.32101135,0.00013698,2]
[395222409,1764551523790,-18.53898865,0.00013698,2]
[395222410,1764551523803,-481.46101135,0.00013698,2]
[395222411,1764551523813,-1147.74898865,0.00013698,2]
[395222412,1764551523825,-500.0,0.00013698,2]
[395222413,1764551523837,-143.4429372,0.00013698,2]
[395222414,1764551538023,-500.0,0.00013273,2]
[395222415,1764551538051,-500.0,0.00013273,2]
[395222416,1764551538079,-350.65400761,0.00013273,2]
[395222417,1764551538108,-300.0,0.00013673,2]
[395222418,1764551538137,-723.50807415,0.00013698,2]
[395222419,1764551538166,-500.0,0.00013698,2]
[395222420,1764551538196,-290.46583648,0.00013698,2]
[395222421,1764551538436,-500.0,0.00013698,2]
[395222422,1764551538452,-500.0,0.00013698,2]
[395222423,1764551538474,-350.65400761,0.00013698,2]
[395222424,1764551538507,-2320.10015591,0.00013698,2]
[395222425,1764551538536,-821.25968818,0.00013698,2]
[395222426,1764551538548,-300.0,0.00013698,2]
[395222427,1764551538560,-723.50807415,0.00013698,2]
[395222428,1764551538571,-500.0,0.00013698,2]
[395222429,1764551538591,-2193.78223767,0.00013698,2]
[395222430,1764551538601,-1767.43776233,0.00013698,2]
[395222431,1764551538644,-177.41223767,0.00013698,2]
[395222432,1764551538654,-2142.68791824,0.00013698,2]
[395222433,1764551538664,-169.79208176,0.00013698,2]
[395222434,1764551538675,-500.0,0.00013698,2]
[395222435,1764551538688,-758.95,0.00013698,2]
[395222436,1764551538697,-500.0,0.00013698,2]
[395222437,1764551538706,-1447.83,0.00013698,2]
[395222438,1764551538716,-500.0,0.00013698,2]
[395222439,1764551538725,-588.26336563,0.00013698,2]
[395222440,1764551538734,-73.71455261,0.00013698,2]
[395222442,1764551565225,-500.0,0.00013389,2]
[395222443,1764551565259,-424.29932566,0.00013389,2]
[395222444,1764551565280,-500.0,0.0001339,2]
[395222445,1764551565291,-424.29932566,0.0001339,2]
[395222446,1764551565307,-8151.41134868,0.0001339,2]
[395222447,1764551565537,-10000.01,0.0001339,2]
[395222448,1764551565797,-10000.01,0.0001339,2]
[395222449,1764551565977,-10000.01,0.0001339,2]
[395222450,1764551566161,-10000.01,0.0001339,2]
[395222451,1764551593730,-500.0,0.0001327,2]
[395222452,1764551593757,-500.0,0.0001327,2]
[395222453,1764551593785,-300.0,0.00013389,2]
[395222454,1764551593805,-500.0,0.0001339,2]
[395222455,1764551593816,-500.0,0.0001339,2]
[395222456,1764551593827,-300.0,0.0001339,2]
[395222457,1764551593837,-7400.01,0.0001339,2]
[395222458,1764551594370,-10000.01,0.0001339,2]
[395222459,1764551594554,-10000.01,0.0001339,2]
[395222460,1764551594775,-10000.01,0.0001339,2]
[395222461,1764551594960,-10000.01,0.0001339,2]
[395222462,1764551595162,-10000.01,0.0001339,2]
[395222463,1764551595363,-10000.01,0.0001339,2]
[395222464,1764551595874,-10000.01,0.0001339,2]
[395222465,1764551595978,-10000.01,0.0001339,2]
[395222466,1764551600796,-10000.01,0.0001339,2]
[395222467,1764551620858,-10000.01,0.0001339,2]
[395222468,1764551621169,-10000.01,0.0001339,2]
[395222469,1764551621363,-10000.01,0.0001339,2]
[395222470,1764551621478,-10000.01,0.0001339,2]
[395222471,1764551621589,-10000.01,0.0001339,2]
[395222472,1764551621711,-10000.01,0.0001339,2]
[395222473,1764551621831,-10000.01,0.0001339,2]
[395222474,1764551627040,-500.0,0.00013269,2]
[395222475,1764551627067,-659.14,0.00013271,2]
[395222476,1764551627092,-500.0,0.00013272,2]
[395222477,1764551627118,-500.0,0.00013272,2]
[395222478,1764551627147,-500.0,0.00013389,2]
[395222479,1764551627171,-500.0,0.0001339,2]
[395222480,1764551627186,-659.14,0.0001339,2]
[395222481,1764551627197,-500.0,0.0001339,2]
[395222482,1764551627209,-500.0,0.0001339,2]
[395222483,1764551627231,-500.0,0.0001339,2]
[395222484,1764551627245,-4681.73,0.0001339,2]
[395222485,1764551642664,-300.0,0.00013268,2]
[395222486,1764551642694,-500.0,0.00013269,2]
[395222487,1764551642727,-163.97665724,0.00013269,2]
[395222488,1764551642756,-3446.0,0.00013269,2]
[395222489,1764551642783,-72.74668552,0.00013269,2]